bitfinex-derivatives/quotes_BTCF0:USTF0_20250315
["timestamp","ask_amount","ask_price","bid_price","bid_amount"]
[1742033586662,0.8995516,83925.0,83924.0,0.13492359]
[1742033586965,0.5387516,83925.0,83924.0,0.13692359]
[1742033587261,0.8985516,83925.0,83924.0,0.13692359]
[1742033588168,0.8985516,83925.0,83924.0,0.13792359]
[1742033591166,0.8985516,83925.0,83924.0,0.1248]
[1742033591367,0.8985516,83925.0,83924.0,0.0875043]
[1742033591571,0.8985516,83925.0,83924.0,0.04062439]
[1742033602977,0.1769516,83925.0,83924.0,0.27062439]
[1742033603275,0.5377516,83925.0,83924.0,0.27062439]
[1742033603665,0.5377516,83925.0,83924.0,0.33282439]
[1742033607384,0.5377516,83925.0,83924.0,0.45197739]
[1742033608566,0.5377516,83925.0,83924.0,0.33282439]
[1742033609767,0.5377516,83925.0,83924.0,0.10282439]
[1742033613779,0.5377516,83925.0,83924.0,0.22197739]
[1742033613982,0.5377516,83925.0,83924.0,0.10282439]
[1742033615590,0.77350107,83925.0,83924.0,0.10282439]
[1742033618385,0.59569183,83925.0,83924.0,0.10282439]
[1742033618990,0.59569183,83925.0,83924.0,0.07222439]
[1742033619193,0.62839183,83925.0,83924.0,0.07222439]
[1742033624599,0.62839183,83925.0,83924.0,0.04062439]
[1742033625384,0.62839183,83925.0,83924.0,0.15977739]
[1742033625797,0.62839183,83925.0,83924.0,0.37977739]
[1742033631706,0.62839183,83925.0,83924.0,0.26062439]
[1742033632303,0.62839183,83925.0,83924.0,0.04062439]
[1742033632501,0.62839183,83925.0,83924.0,0.15977739]
[1742033632807,0.62839183,83925.0,83924.0,0.04062439]
[1742033632998,0.62839183,83925.0,83924.0,0.15977739]
[1742033633301,0.62839183,83925.0,83924.0,0.04062439]
[1742033634300,0.62839183,83925.0,83924.0,0.15977739]
[1742033636710,0.91441821,83925.0,83924.0,0.15977739]
[1742033645111,0.51324023,83925.0,83924.0,0.15977739]
[1742033645310,0.11974023,83925.0,83924.0,0.69057739]
[1742033645514,0.08934023,83925.0,83924.0,0.72157739]
[1742033646015,0.08934023,83925.0,83924.0,0.50157739]
[1742033647612,0.08934023,83925.0,83924.0,0.47157739]
[1742033648412,0.0314,83925.0,83924.0,0.47157739]
[1742033649518,0.0314,83925.0,83924.0,0.83237739]
[1742033650519,0.0645,83925.0,83924.0,0.83237739]
[1742033656917,0.1836516,83925.0,83924.0,0.09062439]
[1742033657119,0.1836516,83925.0,83924.0,0.04062439]
[1742033658406,0.19641216,83925.0,83924.0,0.04062439]
[1742033659916,0.1836516,83925.0,83924.0,0.04062439]
[1742033660119,0.1836516,83925.0,83924.0,0.30314339]
[1742033661111,0.1836516,83925.0,83924.0,0.05314339]
[1742033661424,0.1836516,83925.0,83924.0,0.04062439]
[1742033663027,0.1836516,83925.0,83924.0,0.05314086]
[1742033672037,0.1836516,83925.0,83924.0,0.04062439]
[1742033676646,0.1836516,83925.0,83924.0,0.0532084]
[1742033678334,0.1836516,83925.0,83924.0,0.04062439]
[1742033680135,0.1836516,83925.0,83924.0,0.003]
[1742033694838,0.2982516,83925.0,83924.0,0.003]
[1742033711060,0.1836516,83925.0,83924.0,0.003]
[1742033711255,0.2979716,83925.0,83924.0,0.003]
[1742033712569,0.1191629,83917.0,83916.0,0.00017867]
[1742033712778,0.6899629,83917.0,83916.0,0.00017867]
[1742033712957,0.7838629,83917.0,83916.0,0.00017867]
[1742033717676,0.79638105,83917.0,83916.0,7e-08]
[1742033718474,0.11918,83905.0,83891.0,0.0954]
[1742033718676,0.5945,83905.0,83891.0,0.1549994]
[1742033718982,0.5945,83905.0,83904.0,0.27178779]
[1742033719277,0.60699314,83905.0,83904.0,0.27178779]
[1742033719459,0.66879314,83905.0,83904.0,0.27178779]
[1742033719663,0.66879314,83905.0,83904.0,0.00178779]
[1742033720869,0.66879314,83905.0,83904.0,0.00278779]
[1742033721675,0.66879314,83905.0,83904.0,0.00178779]
[1742033722068,0.66879314,83905.0,83904.0,0.26178779]
[1742033722470,0.66879314,83905.0,83904.0,0.00178779]
[1742033722978,0.66879314,83905.0,83904.0,0.23178779]
[1742033726281,0.66879314,83905.0,83904.0,0.26318779]
[1742033729184,0.66879314,83905.0,83904.0,0.03318779]
[1742033729489,0.66879314,83905.0,83904.0,0.25178779]
[1742033729785,0.66879314,83905.0,83904.0,0.24178779]
[1742033729985,0.66879314,83905.0,83904.0,0.00178779]
[1742033731187,0.66879314,83905.0,83904.0,0.03188779]
[1742033732086,0.66879314,83905.0,83904.0,0.00178779]
[1742033732481,0.66883314,83905.0,83904.0,0.00178779]
[1742033745893,1.02963314,83905.0,83904.0,0.00178779]
[1742033746097,0.1191899,83898.0,83897.0,0.0637]
[1742033746285,0.4799899,83898.0,83897.0,0.0637]
[1742033746485,0.5441899,83898.0,83897.0,0.3437]
[1742033747095,0.5441899,83898.0,83897.0,0.0637]
[1742033747697,0.5441899,83898.0,83897.0,0.3037]
[1742033747884,0.5441899,83898.0,83897.0,0.0637]
[1742033748085,0.5441899,83898.0,83897.0,0.0647]
[1742033748486,0.5441899,83898.0,83897.0,0.3247]
[1742033750394,0.5441899,83898.0,83897.0,0.0647]
[1742033750892,0.5755899,83898.0,83897.0,0.001]
[1742033751087,0.8055899,83898.0,83897.0,0.001]
[1742033751792,0.8055899,83898.0,83897.0,0.0342]
[1742033751986,0.8055899,83898.0,83897.0,0.0332]
[1742033752194,0.8055899,83898.0,83897.0,0.001]
[1742033753489,0.8055899,83898.0,83897.0,0.0647]
[1742033753893,0.8055899,83898.0,83897.0,0.0325]
[1742033754402,0.8055899,83898.0,83897.0,0.001]
[1742033755886,1.1663899,83898.0,83897.0,0.001]
[1742033763307,1.29968468,83898.0,83897.0,0.001]
[1742033770608,1.62118093,83898.0,83897.0,0.001]
[1742033770794,1.62118093,83898.0,83897.0,0.0628]
[1742033770997,1.62118093,83898.0,83897.0,0.02105738]
[1742033771400,0.1192127,83882.0,83881.0,0.0326]
[1742033771601,0.1192127,83882.0,83881.0,0.3126]
[1742033771803,0.1505127,83882.0,83881.0,0.3126]
[1742033772003,0.1505127,83882.0,83881.0,0.2826]
[1742033772400,0.1807127,83882.0,83881.0,0.2826]
[1742033773209,0.1817127,83882.0,83881.0,0.2836]
[1742033773605,0.1827127,83882.0,83881.0,0.2836]
[1742033774202,0.19532609,83882.0,83881.0,0.2836]
[1742033776611,0.19532609,83882.0,83881.0,0.2984]
[1742033780221,0.20414301,83882.0,83881.0,0.2984]
[1742033792718,0.20414301,83882.0,83881.0,0.3211]
[1742033795026,0.20414301,83882.0,83881.0,0.4403141]
[1742033795230,0.20414301,83882.0,83881.0,0.3211]
[1742033796946,0.20414301,83882.0,83881.0,0.3063]
[1742033798048,0.20405947,83882.0,83881.0,0.3063]
[1742033798638,0.20405947,83882.0,83881.0,0.2836]
[1742033799544,0.20405947,83882.0,83881.0,0.4028141]
[1742033800654,0.20405947,83882.0,83881.0,0.6528141]
[1742033800948,0.20405947,83882.0,83881.0,0.4028141]
[1742033801149,0.20405947,83882.0,83881.0,0.6928141]
[1742033801649,0.25035178,83887.0,83886.0,0.119207]
[1742033801850,0.25035178,83887.0,83886.0,0.899207]
[1742033802150,0.36955728,83887.0,83886.0,0.899207]
[1742033802335,0.36955728,83887.0,83886.0,0.869207]
[1742033802535,0.36955728,83887.0,83886.0,0.916707]
[1742033802944,0.36955728,83887.0,83886.0,0.926707]
[1742033803140,0.36955728,83887.0,83886.0,0.906707]
[1742033803333,0.25035178,83887.0,83886.0,0.926707]
[1742033803538,0.25035178,83887.0,83886.0,0.666707]
[1742033803747,0.40175728,83887.0,83886.0,0.667707]
[1742033804050,0.1514055,83887.0,83886.0,0.667707]
[1742033804537,0.1514055,83887.0,83886.0,0.897707]
[1742033807243,0.1514055,83887.0,83886.0,0.667707]
[1742033808047,0.1823055,83887.0,83886.0,0.667707]
[1742033809252,0.1823055,83887.0,83886.0,0.895007]
[1742033809952,0.1823055,83887.0,83886.0,0.645007]
[1742033815940,0.1823055,83887.0,83886.0,0.667707]
[1742033816654,0.1823055,83887.0,83886.0,0.917707]
[1742033818753,0.1823055,83887.0,83886.0,0.937707]
[1742033822746,0.0631,83887.0,83886.0,0.937707]
[1742033822947,0.25035178,83900.0,83898.0,0.119178]
[1742033823162,0.25035178,83900.0,83898.0,1.644658]
[1742033823461,0.00017877,83906.0,83902.0,0.0595854]
[1742033823643,0.00017877,83906.0,83904.0,0.1191695]
[1742033823849,0.00017877,83906.0,83904.0,0.8791695]
[1742033824158,0.31653758,83905.0,83904.0,0.9536695]
[1742033825950,0.31653758,83905.0,83904.0,0.96630107]
[1742033826263,0.34983758,83905.0,83904.0,0.96630107]
[1742033826563,0.34983758,83905.0,83904.0,1.08094107]
[1742033826953,0.0629,83905.0,83904.0,1.08094107]
[1742033828366,0.1820681,83905.0,83904.0,1.08094107]
[1742033829452,0.0629,83905.0,83904.0,1.04094107]
[1742033829652,0.0629,83905.0,83904.0,1.28094107]
[1742033830355,0.0629,83905.0,83904.0,1.04094107]
[1742033831172,0.0629,83905.0,83904.0,1.59094107]
[1742033831467,0.0629,83905.0,83904.0,1.57094107]
[1742033831659,0.0629,83905.0,83904.0,1.31094107]
[1742033831966,0.0629,83905.0,83904.0,1.56094107]
[1742033832168,0.0629,83905.0,83904.0,1.31094107]
[1742033832855,0.0629,83905.0,83904.0,1.04094107]
[1742033833052,0.0629,83905.0,83904.0,1.13856306]
[1742033833258,0.0629,83905.0,83904.0,1.13856302]
[1742033833651,0.0629,83905.0,83904.0,1.42190891]
[1742033834254,0.0629,83905.0,83904.0,1.13856302]
[1742033834872,0.0629,83905.0,83904.0,1.41856302]
[1742033835056,0.0629,83905.0,83904.0,1.13856302]
[1742033835669,0.0629,83905.0,83904.0,1.39856302]
[1742033835868,0.0629,83905.0,83904.0,1.41191596]
[1742033837073,0.0629,83905.0,83904.0,1.15191596]
[1742033837466,0.0629,83905.0,83904.0,1.14429401]
[1742033837864,0.0629,83905.0,83904.0,1.38429401]
[1742033838165,0.0629,83905.0,83904.0,1.39191111]
[1742033839069,0.0629,83905.0,83904.0,1.38855817]
[1742033839271,0.0629,83905.0,83904.0,1.3885395]
[1742033839473,0.1820681,83905.0,83904.0,1.0840395]
[1742033840676,0.1820681,83905.0,83904.0,0.98274843]
[1742033840973,0.1820681,83905.0,83904.0,1.08987]
[1742033842180,0.1820681,83905.0,83904.0,1.11987]
[1742033842777,0.1820681,83905.0,83904.0,1.10652107]
[1742033843863,0.0629,83905.0,83904.0,0.99180107]
[1742033844076,0.0629,83905.0,83904.0,1.10668107]
[1742033845063,0.1820681,83905.0,83904.0,1.10668107]
[1742033845261,0.1820681,83905.0,83904.0,1.12006735]
[1742033845471,0.1820681,83905.0,83904.0,1.12770599]
[1742033848376,0.0629,83905.0,83904.0,1.12770599]
[1742033848582,0.0629,83905.0,83904.0,1.65006735]
[1742033848776,0.0595737,83920.0,83911.0,0.1191595]
[1742033848985,0.0595755,83917.0,83911.0,0.8991595]
[1742033849182,0.11496,83926.0,83911.0,0.8991595]
[1742033849183,0.1191558,83914.0,83911.0,0.9604595]
[1742033849369,0.1191568,83913.0,83911.0,0.9604595]
[1742033849978,0.3608,83916.0,83911.0,0.9604595]
[1742033850180,0.1493581,83912.0,83911.0,0.9604595]
[1742033850483,0.1503581,83912.0,83911.0,0.9604595]
[1742033850882,0.0332,83912.0,83911.0,0.9604595]
[1742033851583,0.1523581,83912.0,83911.0,0.9604595]
[1742033851786,0.1523581,83912.0,83911.0,0.97400676]
[1742033852092,0.0332,83912.0,83911.0,0.97400676]
[1742033852276,0.1523581,83912.0,83911.0,0.97400676]
[1742033852482,0.2145581,83912.0,83911.0,0.97400676]
[1742033853272,0.0954,83912.0,83911.0,0.97400676]
[1742033853480,0.0652,83912.0,83911.0,0.97400676]
[1742033855880,0.1843581,83912.0,83911.0,0.97400676]
[1742033859385,0.0652,83912.0,83911.0,0.97400676]
[1742033860286,0.1843581,83912.0,83911.0,0.97400676]
[1742033860882,0.1191766,83899.0,83898.0,0.7214]
[1742033861083,0.1191851,83893.0,83892.0,0.19267927]
[1742033861282,0.1191851,83893.0,83892.0,0.47267927]
[1742033861479,0.1191851,83893.0,83892.0,0.43267927]
[1742033861990,0.1793851,83893.0,83892.0,0.43267927]
[1742033862194,0.1783851,83893.0,83892.0,0.43267927]
[1742033862995,0.1783851,83893.0,83892.0,0.24]
[1742033863593,0.1191879,83891.0,83890.0,2e-08]
[1742033863790,0.4799879,83891.0,83890.0,0.24000002]
[1742033863993,0.1192093,83876.0,83875.0,0.00178826]
[1742033864197,0.4800093,83876.0,83875.0,0.28454667]
[1742033864784,0.5120093,83876.0,83875.0,0.27178826]
[1742033865086,0.5120093,83876.0,83875.0,0.28455324]
[1742033865287,0.5120093,83876.0,83875.0,0.51178826]
[1742033865684,0.52098248,83876.0,83875.0,0.1754745]
[1742033866003,0.52098248,83876.0,83867.0,0.00017877]
[1742033866004,0.1192206,83868.0,83867.0,0.00017877]
[1742033866192,0.0596053,83875.0,83867.0,0.73558427]
[1742033866394,0.1513192,83869.0,83868.0,0.04476257]
[1742033866587,0.1513192,83869.0,83868.0,0.54476257]
[1742033867129,0.1513192,83869.0,83868.0,0.28476025]
[1742033867395,0.5121192,83869.0,83868.0,0.24]
[1742033867901,0.1513192,83869.0,83868.0,0.24]
[1742033868697,0.5121192,83869.0,83868.0,0.1447129]
[1742033868890,0.1192334,83859.0,83858.0,0.032]
[1742033869203,0.1192548,83844.0,83838.0,0.3608]
[1742033869495,0.1192548,83844.0,83843.0,0.72938693]
[1742033870093,0.1192548,83844.0,83843.0,0.26]
[1742033870292,0.1842548,83844.0,83843.0,0.5]
[1742033870599,0.1842548,83844.0,83843.0,0.26]
[1742033871497,0.1842548,83844.0,83843.0,0.5]
[1742033871686,0.1842548,83844.0,83843.0,0.49]
[1742033871887,0.1842548,83844.0,83843.0,0.26]
[1742033873300,0.5450548,83844.0,83843.0,0.26]
[1742033876989,0.5450548,83844.0,83843.0,0.53]
[1742033877306,0.5450548,83844.0,83843.0,0.26]
[1742033884606,0.119259,83841.0,83840.0,0.0311]
[1742033884800,0.1192718,83832.0,83831.0,0.032]
[1742033884997,0.1192718,83832.0,83831.0,0.282]
[1742033885198,0.1831718,83832.0,83831.0,0.282]
[1742033885704,0.5439718,83832.0,83831.0,0.282]
[1742033886508,0.55629769,83832.0,83831.0,0.282]
[1742033887505,0.55629769,83832.0,83821.0,0.0321]
[1742033887506,0.1192861,83822.0,83821.0,0.0321]
[1742033887807,0.1192861,83822.0,83821.0,0.6221]
[1742033888704,0.1202861,83822.0,83821.0,0.6221]
[1742033889602,0.1212861,83822.0,83821.0,0.6221]
[1742033893719,0.1212861,83822.0,83821.0,0.6358391]
[1742033896510,0.1212861,83822.0,83821.0,0.64368021]
[1742033898207,0.1517861,83822.0,83821.0,0.64368021]
[1742033898409,0.1517861,83822.0,83821.0,0.65635938]
[1742033898918,0.1212861,83822.0,83821.0,0.65635938]
[1742033899502,0.1212861,83822.0,83821.0,0.90635938]
[1742033899503,0.002,83822.0,83821.0,0.90635938]
[1742033899719,0.002,83822.0,83821.0,0.92635938]
[1742033899912,0.1212861,83822.0,83821.0,0.90635938]
[1742033900118,0.1212861,83822.0,83821.0,0.89644193]
[1742033900320,0.1212861,83822.0,83821.0,0.65644193]
[1742033900708,0.1543861,83822.0,83821.0,0.90644193]
[1742033900908,0.1543861,83822.0,83821.0,0.65644193]
[1742033901316,0.1543861,83822.0,83821.0,0.64376297]
[1742033902020,0.1543861,83822.0,83821.0,0.87376297]
[1742033902322,0.1543861,83822.0,83821.0,0.64376297]
[1742033902824,0.1543861,83822.0,83821.0,0.86376297]
[1742033903817,0.00017888,83830.0,83821.0,1.31376297]
[1742033904015,0.01252429,83848.0,83842.0,0.1192572]
[1742033904225,0.01252429,83848.0,83843.0,0.0936]
[1742033904226,0.0612,83848.0,83843.0,0.0936]
[1742033904414,0.1192548,83844.0,83843.0,0.8736]
[1742033904630,0.1192548,83844.0,83843.0,0.8873391]
[1742033905313,0.1512548,83844.0,83843.0,0.6273391]
[1742033905521,0.1512548,83844.0,83843.0,0.5523]
[1742033905718,0.1192647,83837.0,83836.0,0.0634]
[1742033905918,0.1192647,83837.0,83836.0,0.5034]
[1742033906227,0.1192647,83837.0,83836.0,0.44]
[1742033906612,0.1820647,83837.0,83836.0,0.44]
[1742033906924,0.1810647,83837.0,83836.0,0.44]
[1742033907818,0.1810647,83837.0,83836.0,0.442]
[1742033909924,0.1810647,83837.0,83836.0,0.4747]
[1742033910422,0.1810647,83837.0,83836.0,0.5066]
[1742033912314,0.1810647,83837.0,83836.0,0.4747]
[1742033912912,0.1810647,83837.0,83836.0,0.442]
[1742033913113,0.1810647,83837.0,83836.0,0.232]
[1742033915325,0.1810647,83837.0,83836.0,0.472]
[1742033915529,0.1810647,83837.0,83836.0,0.5343]
[1742033920933,0.1810647,83837.0,83836.0,0.472]
[1742033921128,0.1810647,83837.0,83836.0,0.1970232]
[1742033921327,0.1810647,83837.0,83836.0,0.1566916]
[1742033921640,0.1810647,83837.0,83836.0,0.0215102]
[1742033921841,0.1192661,83836.0,83835.0,8e-08]
[1742033922027,0.1192661,83836.0,83835.0,0.29000008]
[1742033922228,0.1816661,83836.0,83835.0,0.29000008]
[1742033922428,0.1816661,83836.0,83835.0,0.25442408]
[1742033922732,0.1493661,83836.0,83835.0,0.72442408]
[1742033922940,0.1806661,83836.0,83835.0,0.51442408]
[1742033925830,0.1806661,83836.0,83835.0,0.25442408]
[1742033926042,0.1806661,83836.0,83835.0,0.47442408]
[1742033927641,0.2121661,83836.0,83835.0,0.47442408]
[1742033927939,0.2121661,83836.0,83835.0,0.42649078]
[1742033928126,0.0596387,83829.0,83822.0,0.0006]
[1742033928327,0.4800804,83826.0,83825.0,0.0301]
[1742033928542,0.49211405,83826.0,83825.0,0.2601]
[1742033928842,0.55381405,83826.0,83825.0,0.2601]
[1742033930133,0.55381405,83826.0,83825.0,0.4901]
[1742033930344,0.55581405,83826.0,83825.0,0.4901]
[1742033931044,0.5437804,83826.0,83825.0,0.4901]
[1742033931429,0.5437804,83826.0,83825.0,0.5001]
[1742033932632,0.5427804,83826.0,83825.0,0.5001]
[1742033932828,0.5417804,83826.0,83825.0,0.5001]
[1742033935245,0.5417804,83826.0,83825.0,0.7601]
[1742033935429,0.5417804,83826.0,83825.0,0.5001]
[1742033940444,0.12666717,83831.0,83825.0,0.5001]
[1742033940445,0.18630387,83831.0,83825.0,0.5001]
[1742033940642,0.1192802,83827.0,83826.0,0.0303]
[1742033940843,0.1192802,83827.0,83826.0,0.5635]
[1742033941043,0.1519802,83827.0,83826.0,0.5635]
[1742033941243,0.1846802,83827.0,83826.0,0.5635]
[1742033946446,0.39898246,83827.0,83826.0,0.5635]
[1742033949142,0.1846802,83827.0,83826.0,0.5635]
[1742033950648,0.5454802,83827.0,83826.0,0.1832387]
[1742033950848,0.5454802,83827.0,83814.0,0.0017894]
[1742033950849,0.119296,83815.0,83814.0,0.0017894]
[1742033951049,0.119296,83815.0,83814.0,0.2617894]
[1742033951460,0.180596,83815.0,83814.0,0.2617894]
[1742033952161,0.541396,83815.0,83814.0,0.2617894]
[1742033952848,0.55327876,83815.0,83814.0,0.2617894]
[1742033953146,0.55327876,83815.0,83814.0,0.2279208]
[1742033955660,0.1193131,83803.0,83802.0,0.0301]
[1742033955860,0.1193131,83803.0,83802.0,0.3314]
[1742033956845,0.1193131,83803.0,83802.0,0.5614]
[1742033958963,0.13175781,83803.0,83802.0,0.5614]
[1742033962472,0.00892939,83803.0,83802.0,0.5614]
[1742033962668,0.06504,83805.0,83802.0,0.7714]
[1742033962669,0.0644,83805.0,83802.0,0.7714]
[1742033962857,0.1193122,83804.0,83802.0,0.7714]
[1742033963173,0.1193131,83803.0,83802.0,0.5614]
[1742033963571,0.0306,83804.0,83802.0,0.5614]
[1742033963755,0.1193131,83803.0,83802.0,0.5614]
[1742033963959,0.0306,83804.0,83803.0,0.1193131]
[1742033964171,0.0306,83804.0,83803.0,0.6803131]
[1742033964565,0.1499117,83804.0,83803.0,0.6803131]
[1742033965665,0.1499117,83804.0,83803.0,0.561]
[1742033965871,0.1829117,83804.0,83803.0,0.561]
[1742033969271,0.06877409,83805.0,83803.0,1.1206565]
[1742033969272,0.00911829,83805.0,83803.0,1.1206565]
[1742033969465,0.1495051,83809.0,83808.0,0.119306]
[1742033969773,0.01231791,83810.0,83809.0,0.1193046]
[1742033969964,0.00903394,83811.0,83810.0,0.1193031]
[1742033970158,0.00017899,83811.0,83810.0,0.9735031]
[1742033970359,0.00017899,83811.0,83810.0,1.4435031]
[1742033970565,0.0302,83819.0,83818.0,0.1192917]
[1742033970769,0.0302,83819.0,83818.0,0.9092917]
[1742033970967,0.1494903,83819.0,83818.0,0.9092917]
[1742033971469,0.1494903,83819.0,83818.0,0.9734917]
[1742033972264,0.1494903,83819.0,83818.0,0.7034917]
[1742033973072,0.1494903,83819.0,83818.0,0.9534917]
[1742033973275,0.1494903,83819.0,83818.0,0.7034917]
[1742033973474,0.1824903,83819.0,83818.0,0.7034917]
[1742033974967,0.1824903,83819.0,83818.0,0.9534917]
[1742033975874,0.0632,83819.0,83818.0,1.2034917]
[1742033976173,0.0632,83819.0,83818.0,1.2234917]
[1742033976480,0.1824903,83819.0,83818.0,1.2234917]
[1742033976665,0.1824903,83819.0,83818.0,1.2034917]
[1742033977271,0.0632,83819.0,83818.0,0.9534917]
[1742033977471,0.0632,83819.0,83818.0,1.2034917]
[1742033977873,0.00897279,83821.0,83820.0,0.1192889]
[1742033978088,0.0301,83821.0,83820.0,0.9192889]
[1742033978382,0.0301,83821.0,83820.0,1.1592889]
[1742033978566,0.0301,83821.0,83820.0,0.9192889]
[1742033978876,0.0301,83821.0,83820.0,1.1692889]
[1742033979076,0.0301,83821.0,83820.0,0.9192889]
[1742033980179,0.0301,83821.0,83820.0,1.1792889]
[1742033980676,0.0301,83821.0,83820.0,1.1492889]
[1742033980878,0.00179023,83824.0,83821.0,0.0596437]
[1742033981069,0.00179023,83824.0,83823.0,0.1192846]
[1742033981268,0.00179023,83824.0,83823.0,1.4714846]
[1742033981869,0.00017899,83827.0,83826.0,0.1192804]
[1742033982177,0.00017899,83827.0,83826.0,1.3692804]
[1742033982376,0.00017899,83827.0,83826.0,1.3792804]
[1742033982679,0.0628,83833.0,83832.0,0.1192718]
[1742033982680,0.0303,83833.0,83832.0,0.1192718]
[1742033982879,0.0303,83833.0,83832.0,1.1192718]
[1742033983462,0.0303,83833.0,83832.0,1.1814718]
[1742033985468,0.0303,83833.0,83832.0,0.9114718]
[1742033985669,0.0303,83833.0,83832.0,1.1714718]
[1742033989586,0.42943114,83841.0,83840.0,0.1192604]
[1742033989587,0.00017899,83841.0,83840.0,0.1192604]
[1742033989783,0.0615,83844.0,83843.0,0.1192562]
[1742033989973,0.0615,83844.0,83843.0,1.1692562]
[1742033990478,0.0615,83844.0,83843.0,1.2302562]
[1742033990778,0.03,83851.0,83850.0,0.1192462]
[1742033990980,0.1492448,83851.0,83850.0,0.8592462]
[1742033991277,0.1492448,83851.0,83850.0,0.49]
[1742033991971,0.03167899,83852.0,83850.0,0.8292462]
[1742033992174,0.03167899,83852.0,83851.0,0.1192448]
[1742033992374,0.15092239,83852.0,83851.0,0.6802448]
[1742033993388,0.15192239,83852.0,83851.0,0.6802448]
[1742033993982,0.15392239,83852.0,83851.0,0.6802448]
[1742033997394,0.15392239,83852.0,83851.0,0.9202448]
[1742033997589,0.15392239,83852.0,83851.0,0.6802448]
[1742033998885,0.18482239,83852.0,83851.0,0.6802448]
[1742034000980,0.18482239,83852.0,83851.0,0.6498448]
[1742034002179,0.18482239,83852.0,83851.0,0.6830448]
[1742034002381,0.18482239,83852.0,83851.0,0.6498448]
[1742034003794,0.18482239,83852.0,83851.0,0.6830448]
[1742034004796,0.18482239,83852.0,83851.0,0.6498448]
[1742034005583,0.18482239,83852.0,83851.0,0.6798448]
[1742034007489,0.18482239,83852.0,83851.0,0.6192448]
[1742034007880,0.18482239,83852.0,83851.0,0.5]
[1742034008081,0.18482239,83852.0,83851.0,0.2265728]
[1742034008293,0.18482239,83852.0,83851.0,0.18481603]
[1742034008294,0.29930239,83852.0,83851.0,0.18481603]
[1742034008491,0.1192661,83836.0,83833.0,0.11626923]
[1742034008788,0.1192661,83836.0,83835.0,0.46017899]
[1742034008983,0.2124661,83836.0,83835.0,0.46017899]
[1742034009591,0.5732661,83836.0,83835.0,0.25017899]
[1742034009782,0.2124661,83836.0,83835.0,0.25117899]
[1742034009977,0.2124661,83836.0,83835.0,0.22285109]
[1742034010382,0.2124661,83836.0,83835.0,0.214]
[1742034010588,0.2124661,83836.0,83835.0,0.1249855]
[1742034010893,0.2124661,83836.0,83833.0,0.00178923]
[1742034010894,0.119269,83834.0,83833.0,3e-08]
[1742034011093,0.52583688,83836.0,83824.0,0.0319]
[1742034011292,0.3608,83825.0,83823.0,0.21412567]
[1742034011493,0.2113832,83824.0,83823.0,0.42412567]
[1742034013490,0.2113832,83824.0,83823.0,0.21]
[1742034018396,0.1192946,83816.0,83815.0,0.00017899]
[1742034018698,0.4800946,83816.0,83815.0,0.28017899]
[1742034019399,0.5436946,83816.0,83815.0,0.28017899]
[1742034021401,0.5446946,83816.0,83815.0,0.28017899]
[1742034021600,0.55676027,83816.0,83815.0,0.28017899]
[1742034022296,0.56568215,83816.0,83815.0,0.26017899]
[1742034022799,0.56568215,83816.0,83815.0,0.00017899]
[1742034027203,0.56568215,83816.0,83815.0,0.28017899]
[1742034027899,0.56568215,83816.0,83815.0,0.00017899]
[1742034029906,0.56568215,83816.0,83815.0,9e-08]
[1742034030808,0.119306,83808.0,83807.0,0.05077009]
[1742034031006,0.594626,83808.0,83807.0,0.33077009]
[1742034031204,0.686726,83808.0,83807.0,0.33077009]
[1742034031405,0.686726,83808.0,83807.0,0.05077009]
[1742034031996,0.688726,83808.0,83807.0,0.29077009]
[1742034032514,0.1193159,83801.0,83800.0,0.1]
[1742034032705,0.4801159,83801.0,83800.0,0.1]
[1742034033010,0.5444159,83801.0,83800.0,0.1]
[1742034033707,0.5444159,83801.0,83800.0,0.05822145]
[1742034033907,0.5444159,83801.0,83800.0,0.08922145]
[1742034035315,0.5454159,83801.0,83800.0,0.08922145]
[1742034035513,0.5464159,83801.0,83800.0,0.08922145]
[1742034035708,0.4271,83801.0,83790.0,0.3608]
[1742034035913,0.3608,83794.0,83762.0,0.20712602]
[1742034036112,0.3608,83774.0,83770.0,0.0596799]
[1742034036314,0.11576,83774.0,83773.0,0.1193558]
[1742034036609,0.1193538,83775.0,83774.0,0.059676]
[1742034036799,0.1193563,83773.0,83771.0,0.1515585]
[1742034036997,0.47652,83779.0,83771.0,0.6515585]
[1742034037200,0.47652,83779.0,83771.0,0.3122]
[1742034037201,0.1193573,83772.0,83771.0,0.3122]
[1742034037404,0.4801573,83772.0,83771.0,0.3122]
[1742034037810,0.4801573,83772.0,83771.0,0.5922]
[1742034038206,0.4801573,83772.0,83771.0,0.3122]
[1742034038396,0.1193573,83772.0,83771.0,0.3122]
[1742034038597,0.1193573,83772.0,83771.0,0.5722]
[1742034039511,0.4801573,83772.0,83771.0,0.5722]
[1742034039813,0.1193573,83772.0,83771.0,0.5722]
[1742034040714,0.4801573,83772.0,83771.0,0.3122]
[1742034041015,0.48005256,83772.0,83771.0,0.3122]
[1742034041203,0.51215256,83772.0,83771.0,0.3122]
[1742034042215,0.52104325,83772.0,83771.0,0.3122]
[1742034042810,0.12814325,83772.0,83771.0,0.5822]
[1742034043011,0.00889069,83772.0,83771.0,0.7015587]
[1742034043213,0.0596751,83777.0,83776.0,0.1193492]
[1742034043516,0.0596751,83777.0,83776.0,0.6593492]
[1742034043712,0.1790285,83777.0,83776.0,0.6593492]
[1742034044012,0.1790285,83777.0,83776.0,0.54]
[1742034044206,0.1790285,83777.0,83776.0,0.6593516]
[1742034045100,0.00891577,83778.0,83777.0,0.1193501]
[1742034045413,0.01205485,83783.0,83777.0,0.1193501]
[1742034045414,0.01205485,83783.0,83782.0,0.119343]
[1742034045613,0.13139645,83783.0,83782.0,0.669343]
[1742034046017,0.1193416,83785.0,83784.0,0.1193387]
[1742034046216,0.1193416,83785.0,83784.0,0.6593387]
[1742034046402,0.3608,83789.0,83785.0,0.1193387]
[1742034046607,0.1193363,83787.0,83785.0,0.6593387]
[1742034046806,0.1193363,83787.0,83785.0,0.6913387]
[1742034047117,0.11951629,83786.0,83785.0,0.6913387]
[1742034048214,0.12828339,83786.0,83785.0,0.6913387]
[1742034049210,0.13028339,83786.0,83785.0,0.6913387]
[1742034049522,0.13128339,83786.0,83785.0,0.6913387]
[1742034049818,0.00317899,83786.0,83785.0,0.6913387]
[1742034050008,0.12251629,83786.0,83785.0,0.6913387]
[1742034050415,0.12251629,83786.0,83785.0,0.572]
[1742034051522,0.12251629,83786.0,83785.0,0.322]
[1742034051719,0.12251629,83786.0,83785.0,0.572]
[1742034052724,0.12251629,83786.0,83785.0,0.6913387]
[1742034053411,0.12251629,83786.0,83785.0,0.572]
[1742034053611,0.15391629,83786.0,83785.0,0.572]